lending/lending_fUSD_20251111
["ID","MTS","AMOUNT","RATE_DAILY","PERIOD"]
[393601058,1762840240708,-500.0,0.00032824,2]
[393601059,1762840240718,-500.0,0.00032824,2]
[393601060,1762840240728,-500.0,0.00032824,2]
[393601061,1762840240737,-500.0,0.00032824,2]
[393601062,1762840240747,-10.58408362,0.00032824,2]
[393601063,1762840241112,-1.7e-07,0.00032824,2]
[393601065,1762840243563,-278.0208,0.00032824,2]
[393601079,1762840246470,-211.39511621,0.00032824,2]
[393601080,1762840246480,-500.0,0.00032824,2]
[393601081,1762840246489,-308.40488379,0.00032824,2]
[393601082,1762840246528,-191.59511621,0.00032824,2]
[393601083,1762840246537,-169.47540482,0.00032824,2]
[393601084,1762840246546,-500.0,0.00032824,2]
[393601085,1762840246555,-500.0,0.00032824,2]
[393601086,1762840246565,-606.12947897,0.00032827,2]
[393601087,1762840246576,-299.87052103,0.00032827,2]
[393601088,1762840246587,-10.46698194,0.00032827,2]
[393601432,1762840579531,4926206.41900667,0.00030137,120]
[393601435,1762840835159,-193.7462,0.000169,2]
[393601436,1762840848765,53.92358851,1.08e-06,2]
[393601437,1762840848792,96.07641149,1.08e-06,2]
[393601438,1762840860580,151.08984331,1.08e-06,2]
[393601440,1762841053244,185.05031277,0.00019,7]
[393601441,1762841116402,-154.0,0.000151,2]
[393601442,1762841116428,-250.0,0.0001661,2]
[393601443,1762841116453,-20.9993931,0.0001661,2]
[393601461,1762841406574,393.25,0.00013699,2]
[393601478,1762841431472,-279.0006069,0.0001661,2]
[393601479,1762841431482,-293.96659738,0.00020187,2]
[393601480,1762841431533,-99.28340262,0.00020187,2]
[393601481,1762841431543,-298.82173271,0.00022549,2]
[393601482,1762841431555,-1.17826729,0.00022549,2]
[393601483,1762841431564,-300.0,0.00022549,2]
[393601484,1762841431574,-150.0,0.000247,30]
[393601485,1762841431583,-213.63,0.00025585,2]
[393601486,1762841431596,-393.25,0.00026676,2]
[393601487,1762841431605,-151.28019208,0.00029069,2]
[393601488,1762841431616,-98.71980792,0.00029069,2]
[393601489,1762841431626,-400.0,0.000295,10]
[393601490,1762841431635,-900.0,0.000296,10]
[393601491,1762841431644,-181.71,0.000297,90]
[393601492,1762841431653,-524.07596444,0.000297,10]
[393601493,1762841431665,-477.97880591,0.000297,10]
[393601494,1762841431676,-298.1025574,0.000297,10]
[393601495,1762841431715,-99.84267225,0.000297,10]
[393601496,1762841431725,-753.9085177,0.000298,10]
[393601497,1762841431736,-1146.0914823,0.000298,10]
[393601498,1762841431746,-1200.0,0.00029816,2]
[393601499,1762841431755,-1665.00999707,0.00029817,2]
[393601500,1762841431764,-1095.0,0.00029899,2]
[393601501,1762841431773,-300.0,0.00029899,2]
[393601502,1762841431782,-300.0,0.00029899,2]
[393601503,1762841431791,-2400.0,0.000299,10]
[393601504,1762841431800,-198.23811848,0.00030027,2]
[393601505,1762841431813,-165.44987886,0.00030034,15]
[393601506,1762841431822,-1000.0,0.00030035,2]
[393601508,1762841431831,-150.0,0.00030035,2]
[393601510,1762841431841,-500.0,0.00030036,2]
[393601512,1762841431851,-500.0,0.00030036,2]
[393601513,1762841431861,-500.0,0.00030036,2]
[393601515,1762841431870,-500.0,0.00030036,2]
[393601517,1762841431880,-500.0,0.00030036,2]
[393601519,1762841431891,-500.0,0.00030036,2]
[393601521,1762841431902,-500.0,0.00030036,2]
[393601523,1762841431912,-500.0,0.00030036,2]
[393601525,1762841431921,-500.0,0.00030036,2]
[393601527,1762841431930,-500.0,0.00030036,2]
[393601530,1762841431940,-500.0,0.00030036,2]
[393601532,1762841431949,-500.0,0.00030036,2]
[393601535,1762841431959,-500.0,0.00030036,2]
[393601537,1762841431969,-500.0,0.00030036,2]
[393601539,1762841431978,-500.0,0.00030036,2]
[393601541,1762841431987,-500.0,0.00030036,2]
[393601543,1762841431996,-54.36974421,0.00030036,2]
[393601545,1762841432010,-445.63025579,0.00030036,2]
[393601547,1762841432019,-500.0,0.00030036,2]
[393601549,1762841432028,-500.0,0.00030036,2]
[393601551,1762841432037,-500.0,0.00030036,2]
[393601552,1762841432047,-500.0,0.00030036,2]
[393601553,1762841432056,-500.0,0.00030036,2]
[393601554,1762841432066,-500.0,0.00030036,2]
[393601555,1762841432075,-500.0,0.00030036,2]
[393601556,1762841432084,-409.13356671,0.00030036,2]
[393601557,1762841432093,-500.0,0.00030036,2]
[393601558,1762841432102,-500.0,0.00030036,2]
[393601559,1762841432111,-500.0,0.00030036,2]
[393601560,1762841432120,-500.0,0.00030036,2]
[393601561,1762841432129,-500.0,0.00030036,2]
[393601562,1762841432138,-500.0,0.00030036,2]
[393601563,1762841432148,-500.0,0.00030036,2]
[393601564,1762841432157,-500.0,0.00030036,2]
[393601565,1762841432167,-650.0,0.00030036,2]
[393601566,1762841432176,-3763.18252795,0.00030046,2]
[393601567,1762841432185,-3401.30730645,0.00030048,2]
[393601568,1762841432197,-263.220004,0.00030048,2]
[393601571,1762841437517,-518.11760014,0.00030027,2]
[393601572,1762841437529,-874.22355268,0.00030027,2]
[393601573,1762841437541,-10829.77670736,0.00030027,2]
[393601574,1762841437551,-98.6552175,0.00030048,2]
[393601575,1762841437561,-285.65287916,0.00030048,2]
[393601576,1762841437570,-306.71554372,0.00030048,2]
[393601577,1762841437580,-1079.55,0.00030048,14]
[393601578,1762841437589,-842.18226297,0.00030048,2]
[393601579,1762841437599,-16376.47969608,0.00030048,2]
[393601580,1762841437608,-3849.33089386,0.00030048,2]
[393601581,1762841437619,-1147.9824134,0.00030048,2]
[393601582,1762841437628,-184.05080953,0.00030048,5]
[393601583,1762841437639,-222.90257369,0.00030048,2]
[393601584,1762841437649,-500.0,0.00030073,5]
[393601585,1762841437658,-501.83285392,0.00030073,2]
[393601586,1762841437668,-500.0,0.00030073,5]
[393601587,1762841437678,-225.74708232,0.00030073,5]
[393601588,1762841437687,-500.0,0.00030073,5]
[393601589,1762841437697,-500.0,0.00030073,5]
[393601590,1762841437707,-500.96249559,0.00030073,5]
[393601591,1762841437716,-151.0,0.00030107,2]
[393601592,1762841437725,-151.0,0.00030107,2]
[393601593,1762841437735,-151.0,0.00030107,2]
[393601594,1762841437745,-151.0,0.00030107,2]
[393601595,1762841437754,-263.62259856,0.00030107,2]
[393601596,1762841437764,-151.0,0.00030107,2]
[393601597,1762841437774,-151.0,0.00030107,2]
[393601598,1762841437783,-151.0,0.00030107,2]
[393601599,1762841437792,-151.0,0.00030107,2]
[393601600,1762841437802,-151.0,0.00030107,2]
[393601601,1762841437812,-151.0,0.00030107,2]
[393601602,1762841437821,-151.0,0.00030107,2]
[393601603,1762841437831,-151.0,0.00030107,2]
[393601604,1762841437841,-151.0,0.00030107,2]
[393601605,1762841437852,-151.0,0.00030107,2]
[393601606,1762841437862,-151.0,0.00030107,2]
[393601607,1762841437871,-151.0,0.00030107,2]
[393601608,1762841437881,-151.0,0.00030107,2]
[393601609,1762841437891,-151.0,0.00030107,2]
[393601610,1762841437901,-151.0,0.00030107,2]
[393601611,1762841437911,-151.0,0.00030107,2]
[393601612,1762841437921,-151.0,0.00030107,2]
[393601613,1762841437930,-151.0,0.00030107,2]
[393601614,1762841437939,-325.0,0.0003011,2]
[393601615,1762841437948,-857.0,0.0003011,2]
[393601616,1762841437958,-3691.51456437,0.00030117,3]
[393601617,1762841437970,-275.84380111,0.00030117,3]
[393601618,1762841437988,-17523.47705544,0.00030117,3]
[393601619,1762841438000,-2729.2586638,0.00030117,3]
[393601620,1762841438011,-15955.75360018,0.00030117,3]
[393601621,1762841438027,-76623.5946061,0.00030117,3]
[393601622,1762841438037,-151.0,0.00030124,7]
[393601623,1762841438047,-564.60593713,0.00030126,2]
[393601624,1762841438056,-187.20707617,0.00030126,2]
[393601625,1762841438067,-500.0,0.00030126,120]
[393601626,1762841438076,-449.24671781,0.00030126,120]
[393601627,1762841438086,-500.0,0.00030126,120]
[393601628,1762841438095,-500.0,0.00030126,120]
[393601629,1762841438104,-500.0,0.00030126,7]
[393601630,1762841438114,-500.0,0.00030126,120]
[393601631,1762841438123,-638.95883668,0.00030126,120]
[393601632,1762841438133,-319.95081928,0.00030126,120]
[393601633,1762841438142,-159271.96676,0.00030127,3]
[393601634,1762841438151,-1005.80096028,0.00030127,2]
[393601635,1762841438161,-1005.80096028,0.00030127,2]
[393601636,1762841438171,-500.0,0.00030129,2]
[393601637,1762841438181,-151.0,0.00030134,7]
[393601638,1762841438191,-1005.09466175,0.00030136,2]
[393601639,1762841438201,-666.0,0.00030136,10]
[393601640,1762841438211,-150.0,0.00030136,20]
[393601641,1762841438221,-2899578.38524398,0.00030137,120]
[393601642,1762841438235,-1730.82,0.00030137,120]
[393601645,1762841439567,-1650.0,0.00030137,120]
[393601694,1762841445569,-5570.45453968,0.00030029,2]
[393601704,1762841445683,-6651.66332047,0.00030029,2]
[393601705,1762841445692,-3902.52024152,0.00030137,120]
[393601706,1762841445704,-299.59256813,0.00030137,120]
[393601707,1762841446013,-52581.02399999,0.00030137,120]
[393601709,1762841446024,-5309.0,0.00030137,120]
[393601826,1762841763577,250.0,0.00017,2]
[393601915,1762842307876,5330.0,0.00018,2]
[393601916,1762842320320,-354.72039396,0.00018,2]
[393601917,1762842325684,-397.25377879,0.00018,2]
[393601918,1762842328985,-193.72660967,0.00018,2]
[393601921,1762842333617,-410.75565822,0.00018,2]
[393601922,1762842350294,-300.0,0.00018,2]
[393601923,1762842353078,-580.74202098,0.00018,2]
[393601924,1762842358245,-273.66125096,0.00018,2]
[393601925,1762842360004,-250.0,0.00018,2]
[393601926,1762842365728,-266.69911595,0.00017999,2]
[393601927,1762842368759,-33.30088405,0.00017999,2]
[393601928,1762842368787,-344.09377294,0.00018,2]
[393601929,1762842373251,-186.7934101,0.00017999,2]
[393601930,1762842374839,-308.50682571,0.00017999,2]
[393601931,1762842377300,-268.29172005,0.00017999,2]
[393601932,1762842395271,-171.07231122,0.00017999,2]
[393601933,1762842398261,-70.43039467,0.00017999,2]
[393601934,1762842398286,-187.20707617,0.00017999,2]
[393601935,1762842398313,-185.12514915,0.00017999,2]
[393601936,1762842401108,-183.45986164,0.00017999,2]
[393601937,1762842402811,-250.0,0.00017999,2]
[393601938,1762842404368,-15.39959608,0.00017999,2]
[393601939,1762842404397,-417.41851303,0.00017999,2]
[393601940,1762842407070,-82.58148697,0.00017999,2]
[393601941,1762842407101,-194.41662616,0.00017999,2]
[393601942,1762842409947,-305.58337384,0.00017999,2]
[393601943,1762842409973,-57.31368314,0.00017999,2]
[393601944,1762842412447,-324.26015561,0.00017999,2]
[393601945,1762842424944,425.86878708,0.00015,2]
[393601946,1762842470328,-165.0,0.00017999,2]
[393601947,1762842470356,-119.2851,0.00017999,2]
[393601948,1762842471820,23774.13121292,0.00015,2]
[393601949,1762842471848,66651.5906934,0.00015,2]
[393601950,1762842478324,-55.05441792,0.00017999,2]
[393601951,1762842478347,-161.56338513,0.00018,2]
[393601952,1762842480562,-33.43661487,0.00018,2]
[393601953,1762842480588,-263.0767171,0.00018,2]
[393601954,1762842493497,-168.01771914,0.00017999,2]
[393601957,1762842583288,-162.92753442,0.0001799,3]
[393601958,1762842586672,-198.33516949,0.0001799,3]
[393601959,1762842591244,-292.1473365,0.0001799,3]
[393601970,1762842631626,-61.70995959,0.0001799,3]
[393601973,1762842631636,-300.0,0.00017999,2]
[393601975,1762842631647,-1200.0,0.00017999,2]
[393601977,1762842631656,-300.0,0.00017999,2]
[393601979,1762842631666,-300.0,0.00017999,2]
[393601980,1762842631676,-36.9232829,0.00018,2]
[393601981,1762842631685,-122642.80179117,0.00018,2]
[393601982,1762842631697,-2640.82527876,0.00018,2]
[393601983,1762842631709,-278.96348675,0.00018,2]
[393601984,1762842631804,-1317.37814711,0.00018,2]
[393601985,1762842631815,-5751.51784936,0.00018,2]
[393601986,1762842631826,-1562.85869457,0.00018,2]
[393601987,1762842631863,-1315.64532491,0.00018,2]
[393601988,1762842631877,-580.36061433,0.00018,2]
[393601989,1762842631892,-772.7912233,0.00018,2]
[393601990,1762842631903,-473.32,0.00018,2]
[393601991,1762842631921,-2326.68095478,0.00018,2]
[393601994,1762842637618,-1294.22726958,0.00018,2]
[393601995,1762842637631,-1616.09048088,0.00018,2]
[393601996,1762842637676,-19942.25021689,0.00018,2]
[393601997,1762842637688,-18078.2181586,0.00018,2]
[393601998,1762842637699,-5004.57534998,0.00018,2]
[393601999,1762842637711,-11683.98625353,0.00018,2]
[393602000,1762842637735,-2107.05010355,0.00018,2]
[393602001,1762842637797,-574231.42051334,0.00018,2]
[393602002,1762842637809,-10108.34734635,0.000186,2]
[393602003,1762842637818,-200.34578431,0.000187,2]
[393602004,1762842637828,-151.67676372,0.000188,2]
[393602005,1762842637839,-7589.72811138,0.000188,2]
[393602006,1762842637848,-282.8950403,0.000189,2]
[393602007,1762842637857,-9398.81472376,0.00019,2]
[393602008,1762842637867,-5122.98177982,0.00019,2]
[393602009,1762842637879,-6064.59957958,0.000195,7]
[393602010,1762842637889,-420.0,0.00019639,2]
[393602011,1762842637898,-420.0,0.00019639,2]
[393602012,1762842637907,-1680.0,0.00019735,2]
[393602014,1762842637916,-218.29082256,0.00019799,2]
[393602015,1762842637925,-300.0,0.00019799,2]
[393602016,1762842637935,-195.0,0.00019799,2]
[393602017,1762842637944,-300.0,0.00019799,2]
[393602018,1762842637954,-175.37172571,0.00019799,2]
[393602019,1762842637963,-10108.34734634,0.00020907,2]
[393602020,1762842637973,-7589.72811133,0.00021084,2]
[393602021,1762842637983,-173.0,0.00021428,2]
[393602022,1762842637992,-587.0,0.00021428,2]
[393602023,1762842638002,-934.0,0.00021639,2]
[393602024,1762842638012,-282.89504024,0.00021851,2]
[393602025,1762842638027,-4202.0,0.000221,3]
[393602026,1762842638037,-5516.0,0.000228,5]
[393602027,1762842638047,-211.15,0.00023126,2]
[393602028,1762842638057,-10108.34734634,0.00023213,2]
[393602029,1762842638066,-7589.72811133,0.00023369,2]
[393602030,1762842638077,-823.0,0.00023381,2]
[393602031,1762842638086,-892.82278368,0.00024702,2]
[393602032,1762842638096,-500.0,0.00024773,2]
[393602033,1762842638105,-500.0,0.00024773,2]
[393602034,1762842638115,-500.0,0.00024773,2]
[393602035,1762842638126,-500.0,0.00024773,2]
[393602036,1762842638136,-234248.872557,0.000248,3]
[393602037,1762842638146,-282.89504024,0.00024803,2]
[393602038,1762842638156,-500.0,0.00024873,2]
[393602039,1762842638166,-189.90660482,0.00024873,2]
[393602040,1762842638176,-500.0,0.00024873,2]
[393602041,1762842638185,-500.0,0.00024873,2]
[393602042,1762842638195,-500.0,0.00024873,2]
[393602043,1762842638204,-218.62,0.00024876,2]
[393602044,1762842638215,-1005.80096028,0.0002489,2]
[393602045,1762842638224,-99925.4513547,0.000249,3]
[393602046,1762842638438,-601.77402789,0.00025,2]
[393602047,1762842638448,-205.16096661,0.00025,2]
[393602048,1762842638458,-1646.2839291,0.00025,2]
[393602049,1762842638468,-211.15,0.00025193,7]
[393602050,1762842638477,-999.0,0.0002528,3]
[393602051,1762842638487,-1000.0,0.00025321,2]
[393602052,1762842638498,-500.0,0.00025321,2]
[393602053,1762842638519,-1000.0,0.00025321,2]
[393602054,1762842638529,-1147.29012973,0.00025321,2]
[393602055,1762842638539,-930.47188067,0.00025421,2]
[393602056,1762842638550,-500.94902408,0.00025421,2]
[393602057,1762842638560,-177.86564694,0.00025421,2]
[393602058,1762842638571,-1000.0,0.00025421,2]
[393602059,1762842638581,-680.0,0.00025511,2]
[393602060,1762842638592,-10108.34734634,0.0002552,2]
[393602061,1762842638603,-167.85,0.00025536,2]
[393602062,1762842638614,-7589.72811133,0.00025653,2]
[393602063,1762842638627,-151.67676372,0.0002572,2]
[393602064,1762842638638,-796.07229422,0.00025868,2]
[393602065,1762842638649,-7098.45068354,0.00025869,3]
[393602066,1762842638660,-6245.34070967,0.00025869,3]
[393602067,1762842638672,-10728.60108037,0.00025879,2]
[393602068,1762842638684,-502.1336636,0.000259,2]
[393602069,1762842638695,-327.0512117,0.000259,2]
[393602070,1762842638705,-507.04189464,0.000259,2]
[393602071,1762842638716,-7098.45068354,0.0002599,3]
[393602072,1762842638727,-4471.51573416,0.00026,2]
[393602073,1762842638737,-1095.16,0.00026144,2]
[393602074,1762842638752,-150.0,0.000262,30]
[393602075,1762842638763,-892.82278365,0.00027178,2]
[393602076,1762842638774,-211.15,0.00027259,7]
[393602077,1762842638785,-235.56,0.00027397,2]
[393602078,1762842638800,-282.89504024,0.00027754,2]
[393602079,1762842638810,-1428.96391688,0.00027777,2]
[393602080,1762842638821,-10108.34734634,0.00027826,2]
[393602081,1762842638832,-7589.72811133,0.00027937,2]
[393602082,1762842638843,-1000.0,0.00028,2]
[393602083,1762842638853,-151.58,0.00028045,2]
[393602084,1762842638864,-6245.34070967,0.0002849,3]
[393602085,1762842638877,-1000.0,0.000285,2]
[393602086,1762842638887,-1362.87589554,0.000285,2]
[393602087,1762842638897,-500.0,0.00028527,2]
[393602088,1762842638908,-211.0,0.0002882,30]
[393602089,1762842638919,-1000.0,0.00029,3]
[393602090,1762842638930,-1000.0,0.00029079,2]
[393602091,1762842638940,-1000.0,0.0002912,2]
[393602092,1762842638950,-211.15,0.00029326,30]
[393602093,1762842638960,-166.35,0.00029344,2]
[393602094,1762842638970,-500.0,0.00029373,5]
[393602095,1762842638981,-163.78594161,0.00029373,5]
[393602096,1762842638991,-501.06196843,0.00029373,5]
[393602097,1762842639001,-534.98815412,0.00029373,5]
[393602098,1762842639011,-200.0,0.00029373,5]
[393602099,1762842639021,-512.44749743,0.00029373,5]
[393602100,1762842639032,-500.0,0.00029373,5]
[393602101,1762842639042,-500.0,0.00029373,5]
[393602102,1762842639054,-500.97016324,0.00029373,5]
[393602103,1762842639064,-500.0,0.00029373,5]
[393602104,1762842639075,-500.37927453,0.00029373,5]
[393602105,1762842639086,-526.70137073,0.00029373,5]
[393602106,1762842639097,-218.82459366,0.00029373,5]
[393602107,1762842639107,-21295.3520506,0.0002939,3]
[393602108,1762842639118,-18736.022129,0.0002939,3]
[393602109,1762842639130,-1000.0,0.00029399,2]
[393602110,1762842639141,-32021.5462312,0.000294,5]
[393602111,1762842639151,-892.82278365,0.00029654,2]
[393602112,1762842639161,-151.58,0.00029798,2]
[393602113,1762842639171,-763.39305,0.0002983,2]
[393602114,1762842639182,-3134.397402,0.000299,2]
[393602115,1762842639192,-500.0,0.00029901,2]
[393602116,1762842639202,-1002.12563559,0.00029921,5]
[393602117,1762842639212,-500.0,0.00029921,5]
[393602118,1762842639223,-500.0,0.00029921,5]
[393602119,1762842639233,-500.0,0.00029921,5]
[393602120,1762842639248,-509.54229899,0.0002998,5]
[393602121,1762842639259,-500.0,0.0002998,5]
[393602122,1762842639269,-500.0,0.0002998,5]
[393602123,1762842639280,-500.0,0.0002998,5]
[393602124,1762842639290,-501.63470427,0.0002998,5]
[393602125,1762842639300,-501.77257534,0.0002998,5]
[393602126,1762842639310,-500.0,0.0002998,5]
[393602127,1762842639319,-501.84143356,0.0002998,5]
[393602128,1762842639330,-500.0,0.0002998,5]
[393602129,1762842639340,-342.5739675,0.0002998,5]
[393602130,1762842639350,-479.69647102,0.0002998,5]
[393602131,1762842639360,-500.0,0.0002998,5]
[393602132,1762842639370,-500.0,0.0002998,5]
[393602133,1762842639380,-500.0,0.0002998,5]
[393602134,1762842639390,-174.95897203,0.0002998,5]
[393602135,1762842639401,-1000.0,0.0003,3]
[393602136,1762842639412,-793.0,0.0003,13]
[393602137,1762842639422,-302.7044161,0.0003,2]
[393602138,1762842639432,-200.0,0.00030016,2]
[393602139,1762842639442,-203.17721759,0.00030016,2]
[393602140,1762842639451,-151.0,0.00030016,2]
[393602141,1762842639461,-151.0,0.00030016,2]
[393602142,1762842639471,-151.0,0.00030016,2]
[393602143,1762842639481,-151.0,0.00030016,2]
[393602144,1762842639491,-151.0,0.00030016,2]
[393602145,1762842639501,-151.0,0.00030016,2]
[393602146,1762842639511,-202.58152099,0.00030016,2]
[393602147,1762842639520,-151.0,0.00030016,2]
[393602148,1762842639530,-151.0,0.00030016,2]
[393602149,1762842639539,-151.0,0.00030016,2]
[393602150,1762842639549,-151.0,0.00030016,2]
[393602151,1762842639559,-151.0,0.00030016,2]
[393602152,1762842639568,-7098.45068354,0.00030024,3]
[393602153,1762842639578,-6245.34070967,0.00030024,3]
[393602154,1762842639588,-177.14849454,0.00030037,2]
[393602155,1762842639597,-400.0,0.00030058,5]
[393602156,1762842639607,-500.61796112,0.00030073,5]
[393602157,1762842639620,-254.41762287,0.00030073,2]
[393602158,1762842639637,-329.0,0.0003011,2]
[393602159,1762842639648,-151.0,0.00030114,7]
[393602160,1762842639659,-219.76956296,0.00030117,2]
[393602161,1762842639671,-21295.3520506,0.00030117,3]
[393602162,1762842639681,-256058.969096,0.00030117,3]
[393602163,1762842639691,-1070.62,0.00030117,14]
[393602164,1762842639702,-151.0,0.00030124,7]
[393602165,1762842639712,-151.0,0.00030124,7]
[393602166,1762842639722,-151.0,0.00030124,7]
[393602167,1762842639732,-307.54098138,0.00030126,10]
[393602168,1762842639742,-666.0,0.00030126,10]
[393602169,1762842639752,-167.05193794,0.00030126,120]
[393602170,1762842639762,-326.80210895,0.00030126,120]
[393602171,1762842639772,-500.0,0.00030126,120]
[393602172,1762842639782,-1005.80096028,0.00030127,2]
[393602173,1762842639792,-827.13157845,0.0003013,30]
[393602174,1762842639806,-10108.34734634,0.00030133,2]
[393602175,1762842639824,-151.0,0.00030134,7]
[393602176,1762842639834,-666.0,0.00030134,10]
[393602177,1762842639845,-150.0,0.00030134,7]
[393602178,1762842639855,-202.65981266,0.00030134,7]
[393602179,1762842639864,-204.5436472,0.00030134,7]
[393602180,1762842639875,-154.99215178,0.00030134,7]
[393602181,1762842639884,-156.52540464,0.00030134,7]
[393602182,1762842639894,-251.94759367,0.00030134,7]
[393602183,1762842639903,-7418.0927644,0.00030135,2]
[393602184,1762842639914,-3255.1626109,0.00030135,2]
[393602185,1762842639923,-32196.992022,0.00030135,2]
[393602186,1762842639932,-121446.1415416,0.00030135,2]
[393602187,1762842639941,-500.0,0.00030135,2]
[393602188,1762842639951,-500.0,0.00030135,2]
[393602189,1762842639960,-500.0,0.00030135,2]
[393602190,1762842639970,-3951.07323,0.00030135,2]
[393602191,1762842639979,-152.73378545,0.00030135,2]
[393602192,1762842639990,-150.0,0.00030135,2]
[393602193,1762842639999,-157.84778761,0.00030135,2]
[393602194,1762842640012,-500.0,0.00030135,2]
[393602195,1762842640022,-500.0,0.00030135,2]
[393602196,1762842640031,-151.0,0.00030135,31]
[393602197,1762842640041,-151.0,0.00030135,31]
[393602198,1762842640051,-151.0,0.00030135,31]
[393602199,1762842640060,-151.0,0.00030135,31]
[393602200,1762842640069,-151.0,0.00030135,31]
[393602201,1762842640079,-151.0,0.00030135,31]
[393602202,1762842640088,-151.0,0.00030135,31]
[393602203,1762842640097,-151.0,0.00030135,31]
[393602204,1762842640107,-151.0,0.00030135,31]
[393602205,1762842640116,-151.0,0.00030135,31]
[393602206,1762842640127,-151.0,0.00030135,31]
[393602207,1762842640137,-151.0,0.00030135,31]
[393602208,1762842640147,-281.769048,0.00030135,31]
[393602209,1762842640157,-151.0,0.00030135,31]
[393602210,1762842640168,-151.0,0.00030135,31]
[393602211,1762842640177,-151.0,0.00030135,31]
[393602212,1762842640187,-151.0,0.00030135,31]
[393602213,1762842640196,-151.0,0.00030135,31]
[393602214,1762842640206,-151.0,0.00030135,31]
[393602215,1762842640219,-151.0,0.00030135,31]
[393602216,1762842640229,-151.0,0.00030135,31]
[393602217,1762842640238,-229.035135,0.00030135,31]
[393602218,1762842640247,-151.0,0.00030135,31]
[393602219,1762842640257,-151.0,0.00030135,31]
[393602220,1762842640266,-151.0,0.00030135,31]
[393602221,1762842640276,-151.0,0.00030135,31]
[393602222,1762842640285,-151.612033,0.00030135,31]
[393602223,1762842640295,-154.590689,0.00030135,31]
[393602224,1762842640304,-151.0,0.00030135,31]
[393602225,1762842640313,-666.0,0.00030136,10]
[393602226,1762842640322,-150.0,0.00030136,20]
[393602227,1762842640331,-1961155.07695305,0.00030137,120]
[393602228,1762842640341,-151.0,0.00030137,31]
[393602229,1762842640350,-151.0,0.00030137,31]
[393602230,1762842640360,-151.0,0.00030137,31]
[393602231,1762842640369,-151.0,0.00030137,31]
[393602232,1762842640379,-153.075612,0.00030137,31]
[393602233,1762842640388,-153.346243,0.00030137,31]
[393602234,1762842640398,-152.562591,0.00030137,31]
[393602235,1762842640409,-151.0,0.00030137,31]
[393602236,1762842640418,-151.0,0.00030137,31]
[393602237,1762842640427,-151.0,0.00030137,31]
[393602238,1762842640437,-151.0,0.00030137,30]
[393602239,1762842640446,-151.0,0.00030137,31]
[393602240,1762842640456,-151.0,0.00030137,31]
[393602241,1762842640467,-160.651162,0.00030137,31]
[393602242,1762842640477,-187.064288,0.00030137,31]
[393602243,1762842640486,-152.332641,0.00030137,31]
[393602244,1762842640496,-151.0,0.00030137,31]
[393602245,1762842640505,-151.0,0.00030137,31]
[393602246,1762842640515,-151.766308,0.00030137,31]
[393602247,1762842640525,-168.107224,0.00030137,31]
[393602248,1762842640535,-151.0,0.00030137,30]
[393602249,1762842640545,-168.107224,0.00030137,31]
[393602250,1762842640555,-151.0,0.00030137,31]
[393602251,1762842640564,-168.107224,0.00030137,31]
[393602252,1762842640575,-151.0,0.00030137,31]
[393602253,1762842640585,-151.0,0.00030137,31]
[393602254,1762842640594,-168.107224,0.00030137,31]
[393602255,1762842640604,-151.0,0.00030137,31]
[393602256,1762842640613,-151.0,0.00030137,31]
[393602257,1762842640624,-151.0,0.00030137,31]
[393602258,1762842640633,-151.0,0.00030137,31]
[393602259,1762842640643,-151.0,0.00030137,31]
[393602260,1762842640653,-157.48468,0.00030137,31]
[393602261,1762842640663,-152.080085,0.00030137,31]